lending/lending_fUSD_20240928
["ID","MTS","AMOUNT","RATE_DAILY","PERIOD"]
[339369199,1727495186749,-201.0,0.000129,2]
[339369200,1727495186771,-201.0,0.000129,2]
[339369201,1727495186793,-4217.54424738,0.000129,2]
[339369202,1727495186813,-220.979755,0.000129,2]
[339369203,1727495186834,-220.979755,0.000129,2]
[339369204,1727495186855,-190.597695,0.000129,2]
[339369205,1727495186876,-190.597695,0.000129,2]
[339369206,1727495186897,-190.597695,0.000129,2]
[339369207,1727495186919,-190.597695,0.000129,2]
[339369208,1727495186939,-190.597695,0.000129,2]
[339369209,1727495186961,-1320.95417838,0.000129,2]
[339369210,1727495186984,-152.80567462,0.000129,2]
[339369211,1727495187007,-152.80567462,0.000129,2]
[339369212,1727495187031,-152.80567462,0.000129,2]
[339369213,1727495187057,-153.3,0.000129,2]
[339369214,1727495187080,-152.89942462,0.000129,2]
[339369215,1727495187103,-152.89942462,0.000129,2]
[339369216,1727495187125,-152.89942462,0.000129,2]
[339369217,1727495187147,-152.89942462,0.000129,2]
[339369218,1727495187170,-152.89942462,0.000129,2]
[339369219,1727495187193,-152.89942462,0.000129,2]
[339369220,1727495187219,-152.89942462,0.000129,2]
[339369221,1727495187241,-152.89942462,0.000129,2]
[339369222,1727495187264,-152.89942462,0.000129,2]
[339369223,1727495187287,-152.89942462,0.000129,2]
[339369224,1727495187311,-152.89942462,0.000129,2]
[339369225,1727495187334,-152.89942462,0.000129,2]
[339369226,1727495187359,-152.89942462,0.000129,2]
[339369227,1727495187384,-152.89942462,0.000129,2]
[339369228,1727495187407,-152.89942462,0.000129,2]
[339369229,1727495187429,-153.39,0.000129,2]
[339369230,1727495187453,-158.3111656,0.000129,2]
[339369231,1727495187476,-158.3111656,0.000129,2]
[339369232,1727495187499,-158.3111656,0.000129,2]
[339369233,1727495187522,-158.3111656,0.000129,2]
[339369234,1727495187545,-158.81,0.000129,2]
[339369235,1727495187567,-158.3861656,0.000129,2]
[339369236,1727495187589,-158.3861656,0.000129,2]
[339369237,1727495187611,-158.3861656,0.000129,2]
[339369238,1727495187633,-158.3861656,0.000129,2]
[339369239,1727495187655,-158.3861656,0.000129,2]
[339369240,1727495187677,-158.3861656,0.000129,2]
[339369241,1727495187699,-158.3861656,0.000129,2]
[339369242,1727495187721,-158.3861656,0.000129,2]
[339369243,1727495187744,-158.3861656,0.000129,2]
[339369244,1727495187767,-158.3861656,0.000129,2]
[339369245,1727495187789,-158.3861656,0.000129,2]
[339369246,1727495187812,-158.3861656,0.000129,2]
[339369247,1727495187834,-158.3861656,0.000129,2]
[339369248,1727495187857,-158.3861656,0.000129,2]
[339369249,1727495187880,-158.3861656,0.000129,2]
[339369250,1727495187902,-158.3861656,0.000129,2]
[339369251,1727495187925,-158.3861656,0.000129,2]
[339369252,1727495187947,-158.3861656,0.000129,2]
[339369253,1727495187970,-158.3861656,0.000129,2]
[339369254,1727495187992,-158.88,0.000129,2]
[339369255,1727495188014,-151.0,0.000129,2]
[339369256,1727495188036,-151.0,0.000129,2]
[339369257,1727495188058,-314.429482,0.000129,2]
[339369258,1727495188080,-314.429482,0.000129,2]
[339369259,1727495188101,-314.429482,0.000129,2]
[339369260,1727495188123,-314.429485,0.000129,2]
[339369261,1727495188144,-151.0,0.000129,2]
[339369262,1727495188166,-151.0,0.000129,2]
[339369263,1727495188186,-214.119688,0.000129,2]
[339369264,1727495188207,-151.0,0.000129,2]
[339369265,1727495188228,-157.88341,0.000129,2]
[339369266,1727495188249,-157.88342,0.000129,2]
[339369267,1727495188271,-151.0,0.000129,2]
[339369268,1727495188292,-292.137914,0.000129,2]
[339369269,1727495188316,-292.137921,0.000129,2]
[339369270,1727495188337,-356.429471,0.000129,2]
[339369271,1727495188359,-356.429468,0.000129,2]
[339369272,1727495188382,-151.0,0.000129,2]
[339369273,1727495188403,-210.878538,0.000129,2]
[339369274,1727495188425,-210.878543,0.000129,2]
[339369275,1727495188447,-151.0,0.000129,2]
[339369276,1727495188471,-151.0,0.000129,2]
[339369277,1727495188494,-347.521049,0.000129,2]
[339369278,1727495188518,-347.521049,0.000129,2]
[339369279,1727495188539,-347.521049,0.000129,2]
[339369280,1727495188561,-347.521053,0.000129,2]
[339369281,1727495188582,-397.50454,0.000129,2]
[339369282,1727495188604,-397.50454,0.000129,2]
[339369283,1727495188627,-397.50454,0.000129,2]
[339369284,1727495188647,-397.504536,0.000129,2]
[339369285,1727495188669,-151.0,0.000129,2]
[339369286,1727495188692,-151.0,0.000129,2]
[339369287,1727495188714,-270.956301,0.000129,2]
[339369288,1727495188736,-169.50681137,0.000129,2]
[339369289,1727495188757,-193.625785,0.000129,2]
[339369290,1727495188779,-193.625785,0.000129,2]
[339369291,1727495188800,-193.625785,0.000129,2]
[339369292,1727495188822,-193.625784,0.000129,2]
[339369293,1727495188844,-268.444994,0.000129,2]
[339369294,1727495188865,-268.444994,0.000129,2]
[339369295,1727495188887,-268.444994,0.000129,2]
[339369296,1727495188908,-268.445003,0.000129,2]
[339369297,1727495188931,-384.607828,0.000129,2]
[339369298,1727495188955,-384.607828,0.000129,2]
[339369299,1727495188986,-384.607828,0.000129,2]
[339369300,1727495189007,-384.607827,0.000129,2]
[339369301,1727495189031,-3257.071349,0.000129,2]
[339369302,1727495189053,-3257.071349,0.000129,2]
[339369303,1727495189075,-3257.071349,0.000129,2]
[339369304,1727495189098,-3257.071346,0.000129,2]
[339369305,1727495189125,-674.885603,0.000129,2]
[339369306,1727495189152,-674.885603,0.000129,2]
[339369307,1727495189179,-674.885603,0.000129,2]
[339369308,1727495189204,-674.885598,0.000129,2]
[339369309,1727495189230,-3124.92811808,0.000129,2]
[339369310,1727495189256,-249.999552,0.000129,2]
[339369311,1727495189283,-249.999552,0.000129,2]
[339369312,1727495189310,-249.999552,0.000129,2]
[339369313,1727495189336,-249.999544,0.000129,2]
[339369314,1727495189362,-318.895667,0.000129,2]
[339369315,1727495189389,-318.895667,0.000129,2]
[339369316,1727495189423,-3151.61139428,0.000129,2]
[339369317,1727495189449,-318.895667,0.000129,2]
[339369318,1727495189475,-318.895661,0.000129,2]
[339369319,1727495189502,-1757.85679345,0.000129,2]
[339369320,1727495189529,-151.0,0.000129,2]
[339369321,1727495189558,-151.0,0.000129,2]
[339369322,1727495189583,-445.2705982,0.000129,2]
[339369323,1727495189608,-203.75692192,0.000129,2]
[339369324,1727495189632,-163.02442659,0.000129,2]
[339369325,1727495189660,-799.0,0.00012921,2]
[339369326,1727495189684,-333.0,0.00012932,2]
[339369327,1727495189713,-150.0,0.00012936,2]
[339369328,1727495189740,-150.0,0.0001296,2]
[339369329,1727495189765,-47619.29091251,0.00012961,2]
[339369330,1727495189791,-151.0,0.00012961,2]
[339369331,1727495189816,-500.0,0.00012973,2]
[339369332,1727495189842,-500.0,0.00012973,2]
[339369333,1727495189864,-500.0,0.00012973,2]
[339369334,1727495189886,-500.0,0.00012973,2]
[339369335,1727495189909,-500.0,0.00012973,2]
[339369336,1727495189934,-500.0,0.00012973,2]
[339369337,1727495189959,-500.0,0.00012973,2]
[339369338,1727495189987,-150.0,0.00012981,2]
[339369339,1727495190010,-1849.32686978,0.0001299,2]
[339369340,1727495190036,-759.503655,0.00012991,2]
[339369341,1727495190060,-832.4198984,0.00012991,2]
[339369342,1727495190085,-905.3361419,0.00012991,2]
[339369343,1727495190108,-978.2523853,0.00012991,2]
[339369344,1727495190130,-1051.1686288,0.00012991,2]
[339369345,1727495190153,-2544.9858313,0.00012991,2]
[339369346,1727495190178,-2789.3175145,0.00012991,2]
[339369347,1727495190200,-3033.6491978,0.00012991,2]
[339369348,1727495190224,-3277.980881,0.00012991,2]
[339369349,1727495190247,-3522.3125643,0.00012991,2]
[339369350,1727495190270,-15972.3516055,0.00012991,2]
[339369351,1727495190294,-17479.0809063,0.00012991,2]
[339369352,1727495190320,-18985.8102071,0.00012991,2]
[339369353,1727495190345,-20492.539508,0.00012991,2]
[339369354,1727495190369,-21999.2688088,0.00012991,2]
[339369355,1727495190397,-493978.00379111,0.00012995,2]
[339369356,1727495190422,-226546.05546884,0.00012998,2]
[339369357,1727495190447,-150.0,0.00012999,2]
[339369358,1727495190474,-685.8,0.00012999,7]
[339369359,1727495190499,-76665.51424241,0.00012999,2]
[339369360,1727495190523,-5532.35835865,0.00012999,2]
[339369361,1727495190547,-1006.4439,0.00012999,2]
[339369362,1727495190572,-165.08784744,0.00013,10]
[339369363,1727495190597,-2663461.78140213,0.00013,2]
[339369364,1727495213083,907.94,0.0001023,2]
[339369382,1727495242507,500.0,0.00010068,2]
[339369399,1727495432110,-500.0,0.00011164,2]
[339369400,1727495432120,-203.37788318,0.00011164,2]
[339369401,1727495432131,-296.62211682,0.00011164,2]
[339369402,1727495432141,-121.61362158,0.00011699,2]
[339369403,1727495432152,-816.05578721,0.00011699,2]
[339369404,1727495432212,-340.78735789,0.00011699,2]
[339369405,1727495432224,-5289.25833332,0.00011699,2]
[339369406,1727495432234,-409.80817906,0.00011799,2]
[339369407,1727495432243,-250.0,0.0001186,2]
[339369408,1727495432252,-196.055899,0.00011881,2]
[339369409,1727495432262,-181.571936,0.00011881,2]
[339369410,1727495432271,-300.0,0.00011947,2]
[339369411,1727495432281,-1000.0,0.00011948,2]
[339369412,1727495432291,-181.571936,0.00012178,2]
[339369413,1727495432300,-1250.0,0.000123,2]
[339369414,1727495432310,-174.24,0.00012325,2]
[339369415,1727495432320,-181.571936,0.00012475,2]
[339369416,1727495432330,-907.94,0.00012494,2]
[339369417,1727495432339,-150.0,0.00012509,2]
[339369418,1727495432349,-13500.0,0.00012509,2]
[339369419,1727495432359,-5871.0,0.00012509,2]
[339369420,1727495432368,-1148.0,0.00012509,2]
[339369421,1727495432378,-500.0,0.00012534,2]
[339369422,1727495432387,-849.0689467,0.00012781,2]
[339369423,1727495432396,-151.0,0.00012785,2]
[339369424,1727495432407,-151.0,0.00012786,2]
[339369425,1727495432417,-151.0,0.00012786,2]
[339369426,1727495432427,-500.0,0.00012808,2]
[339369427,1727495432436,-150.0,0.00012875,2]
[339369428,1727495432446,-500.0,0.00012876,2]
[339369429,1727495432456,-500.0,0.00012876,2]
[339369430,1727495432466,-501.65450319,0.00012876,2]
[339369431,1727495432476,-500.0,0.00012876,2]
[339369432,1727495432485,-500.0,0.00012876,2]
[339369433,1727495432495,-500.0,0.00012876,2]
[339369434,1727495432504,-213.37425654,0.00012876,2]
[339369435,1727495432514,-500.95568782,0.00012876,2]
[339369436,1727495432524,-500.0,0.00012876,2]
[339369437,1727495432535,-500.0,0.00012876,2]
[339369439,1727495432545,-500.0,0.00012876,2]
[339369441,1727495432559,-234.64039568,0.00012876,2]
[339369444,1727495432568,-540.9890655,0.00012876,2]
[339369447,1727495432578,-500.0,0.00012876,2]
[339369450,1727495432587,-500.0,0.00012876,2]
[339369452,1727495432598,-501.09176158,0.00012876,2]
[339369454,1727495432609,-500.0,0.00012876,2]
[339369455,1727495432620,-500.0,0.00012876,2]
[339369456,1727495432631,-330.25136285,0.00012876,2]
[339369457,1727495432641,-500.0,0.00012876,2]
[339369458,1727495432650,-500.0,0.00012876,2]
[339369459,1727495432660,-500.0,0.00012876,2]
[339369460,1727495432669,-500.0,0.00012876,2]
[339369461,1727495432678,-500.0,0.00012876,2]
[339369463,1727495432687,-500.68087296,0.00012876,2]
[339369465,1727495432697,-500.0,0.00012876,2]
[339369466,1727495432706,-500.0,0.00012876,2]
[339369467,1727495432716,-302.04668987,0.00012876,2]
[339369468,1727495432726,-501.08321449,0.00012876,2]
[339369469,1727495432735,-610.35330412,0.00012876,2]
[339369470,1727495432746,-500.0,0.00012876,2]
[339369471,1727495432756,-500.0,0.00012876,2]
[339369472,1727495432766,-645.69108481,0.00012876,2]
[339369473,1727495432776,-500.53486963,0.00012876,2]
[339369474,1727495432785,-500.0,0.00012876,2]
[339369475,1727495432795,-500.0,0.00012876,2]
[339369476,1727495432804,-500.0,0.00012876,2]
[339369477,1727495432815,-500.0,0.00012876,2]
[339369478,1727495432824,-500.0,0.00012876,2]
[339369479,1727495432833,-500.0,0.00012876,2]
[339369480,1727495432842,-500.0,0.00012876,2]
[339369481,1727495432852,-500.0,0.00012876,2]
[339369482,1727495432861,-500.0,0.00012876,2]
[339369483,1727495432870,-275.1587473,0.00012876,2]
[339369484,1727495432881,-500.0,0.00012876,2]
[339369485,1727495432890,-500.0,0.00012876,2]
[339369486,1727495432899,-500.0,0.00012876,2]
[339369487,1727495432910,-500.0,0.00012876,2]
[339369488,1727495432919,-229.08497928,0.00012876,2]
[339369489,1727495432929,-500.0,0.00012876,2]
[339369490,1727495432938,-502.9482493,0.00012876,2]
[339369491,1727495432947,-500.0,0.00012876,2]
[339369492,1727495432956,-500.0,0.00012876,2]
[339369493,1727495432968,-500.0,0.00012876,2]
[339369494,1727495432977,-500.0,0.00012876,2]
[339369495,1727495432986,-500.0,0.00012876,2]
[339369496,1727495432996,-500.0,0.00012876,2]
[339369497,1727495433005,-500.0,0.00012876,2]
[339369498,1727495433014,-500.0,0.00012876,2]
[339369499,1727495433023,-628.03294828,0.00012876,2]
[339369500,1727495433032,-500.0,0.00012876,2]
[339369501,1727495433042,-500.0,0.00012876,2]
[339369502,1727495433051,-500.0,0.00012876,2]
[339369503,1727495433060,-467.23215991,0.00012876,2]
[339369504,1727495433069,-500.0,0.00012876,2]
[339369505,1727495433078,-500.0,0.00012876,2]
[339369506,1727495433088,-500.0,0.00012876,2]
[339369507,1727495433097,-500.0,0.00012876,2]
[339369508,1727495433106,-500.0,0.00012876,2]
[339369509,1727495433116,-546.96592791,0.00012876,2]
[339369510,1727495433125,-504.24514672,0.00012876,2]
[339369511,1727495433134,-500.0,0.00012876,2]
[339369512,1727495433143,-500.0,0.00012876,2]
[339369513,1727495433152,-500.0,0.00012876,2]
[339369514,1727495433163,-500.0,0.00012876,2]
[339369515,1727495433173,-500.0,0.00012876,2]
[339369516,1727495433182,-500.0,0.00012876,2]
[339369517,1727495433191,-500.0,0.00012876,2]
[339369518,1727495433200,-500.0,0.00012876,2]
[339369519,1727495433210,-500.0,0.00012876,2]
[339369520,1727495433219,-500.0,0.00012876,2]
[339369521,1727495433229,-500.0,0.00012876,2]
[339369522,1727495433238,-500.0,0.00012876,2]
[339369523,1727495433248,-500.0,0.00012876,2]
[339369524,1727495433257,-500.0,0.00012876,2]
[339369525,1727495433267,-500.0,0.00012876,2]
[339369526,1727495433276,-500.0,0.00012876,2]
[339369527,1727495433285,-500.0,0.00012876,2]
[339369528,1727495433295,-500.0,0.00012876,2]
[339369529,1727495433304,-500.0,0.00012876,2]
[339369530,1727495433313,-369.28667,0.00012876,2]
[339369531,1727495433323,-500.0,0.00012876,2]
[339369532,1727495433332,-500.0,0.00012876,2]
[339369533,1727495433342,-500.0,0.00012876,2]
[339369534,1727495433352,-500.0,0.00012876,2]
[339369535,1727495433361,-500.0,0.00012876,2]
[339369536,1727495433370,-500.0,0.00012876,2]
[339369537,1727495433380,-500.0,0.00012876,2]
[339369538,1727495433389,-500.0,0.00012876,2]
[339369539,1727495433399,-500.0,0.00012876,2]
[339369540,1727495433410,-500.0,0.00012876,2]
[339369541,1727495433419,-500.0,0.00012876,2]
[339369542,1727495433429,-500.0,0.00012876,2]
[339369543,1727495433438,-500.0,0.00012876,2]
[339369544,1727495433448,-500.0,0.00012876,2]
[339369545,1727495433458,-500.0,0.00012876,2]
[339369546,1727495433468,-500.0,0.00012876,2]
[339369547,1727495433478,-500.0,0.00012876,2]
[339369548,1727495433488,-503.45483717,0.00012876,2]
[339369549,1727495433498,-500.0,0.00012876,2]
[339369550,1727495433508,-500.0,0.00012876,2]
[339369551,1727495433518,-500.0,0.00012876,2]
[339369552,1727495433528,-500.0,0.00012876,2]
[339369553,1727495433538,-500.0,0.00012876,2]
[339369554,1727495433550,-500.0,0.00012876,2]
[339369555,1727495433561,-500.0,0.00012876,2]
[339369556,1727495433571,-500.0,0.00012876,2]
[339369557,1727495433581,-500.0,0.00012876,2]
[339369558,1727495433591,-500.0,0.00012876,2]
[339369559,1727495433601,-500.0,0.00012876,2]
[339369560,1727495433611,-500.0,0.00012876,2]
[339369561,1727495433621,-504.9876019,0.00012876,2]
[339369562,1727495433632,-500.0,0.00012876,2]
[339369563,1727495433641,-500.0,0.00012876,2]
[339369564,1727495433653,-500.0,0.00012876,2]
[339369565,1727495433665,-500.0,0.00012876,2]
[339369566,1727495433675,-500.0,0.00012876,2]
[339369567,1727495433684,-500.0,0.00012876,2]
[339369568,1727495433694,-500.0,0.00012876,2]
[339369569,1727495433703,-500.0,0.00012876,2]
[339369570,1727495433713,-500.0,0.00012876,2]
[339369571,1727495433723,-500.0,0.00012876,2]
[339369572,1727495433733,-500.0,0.00012876,2]
[339369573,1727495433743,-500.0,0.00012876,2]
[339369574,1727495433752,-500.0,0.00012876,2]
[339369575,1727495433762,-500.0,0.00012876,2]
[339369576,1727495433772,-500.0,0.00012876,2]
[339369577,1727495433782,-500.0,0.00012876,2]
[339369578,1727495433792,-506.50058585,0.00012876,2]
[339369579,1727495433801,-502.47551737,0.00012876,2]
[339369580,1727495433811,-500.0,0.00012876,2]
[339369581,1727495433821,-500.0,0.00012876,2]
[339369582,1727495433831,-500.0,0.00012876,2]
[339369583,1727495433841,-500.0,0.00012876,2]
[339369584,1727495433850,-500.0,0.00012876,2]
[339369585,1727495433860,-619.35,0.00012876,2]
[339369586,1727495433869,-500.0,0.00012876,2]
[339369587,1727495433879,-329.74226628,0.00012876,2]
[339369588,1727495433889,-619.35,0.00012876,2]
[339369589,1727495433899,-619.35,0.00012876,2]
[339369590,1727495433909,-619.35,0.00012876,2]
[339369591,1727495433919,-619.35,0.00012876,2]
[339369592,1727495433928,-500.0,0.00012876,2]
[339369593,1727495433938,-619.35,0.00012876,2]
[339369594,1727495433947,-500.0,0.00012876,2]
[339369595,1727495433957,-619.35,0.00012876,2]
[339369596,1727495433966,-502.32582472,0.00012876,2]
[339369597,1727495433975,-619.35,0.00012876,2]
[339369598,1727495433985,-619.35,0.00012876,2]
[339369599,1727495433995,-619.35,0.00012876,2]
[339369600,1727495434004,-619.35,0.00012876,2]
[339369601,1727495434014,-619.35,0.00012876,2]
[339369602,1727495434024,-619.35,0.00012876,2]
[339369603,1727495434034,-619.35,0.00012876,2]
[339369604,1727495434044,-619.35,0.00012876,2]
[339369605,1727495434054,-500.0,0.00012876,2]
[339369606,1727495434064,-500.0,0.00012876,2]
[339369607,1727495434075,-500.0,0.00012876,2]
[339369608,1727495434085,-500.0,0.00012876,2]
[339369609,1727495434095,-500.0,0.00012876,2]
[339369610,1727495434105,-500.0,0.00012876,2]
[339369611,1727495434115,-500.0,0.00012876,2]
[339369612,1727495434125,-500.0,0.00012876,2]
[339369613,1727495434135,-507.47464515,0.00012876,2]
[339369614,1727495434145,-152.31173413,0.00012876,2]
[339369615,1727495434155,-579.87,0.00012876,2]
[339369616,1727495434164,-579.87,0.00012876,2]
[339369617,1727495434174,-579.87,0.00012876,2]
[339369618,1727495434184,-579.87,0.00012876,2]
[339369619,1727495434194,-579.87,0.00012876,2]
[339369620,1727495434204,-579.87,0.00012876,2]
[339369621,1727495434219,-579.87,0.00012876,2]
[339369622,1727495434229,-579.87,0.00012876,2]
[339369623,1727495434239,-500.0,0.00012876,2]
[339369624,1727495434248,-579.87,0.00012876,2]
[339369625,1727495434258,-500.0,0.00012876,2]
[339369626,1727495434268,-579.87,0.00012876,2]
[339369627,1727495434278,-500.0,0.00012876,2]
[339369628,1727495434287,-579.87,0.00012876,2]
[339369629,1727495434296,-500.0,0.00012876,2]
[339369630,1727495434305,-579.87,0.00012876,2]
[339369631,1727495434315,-500.0,0.00012876,2]
[339369632,1727495434325,-579.87,0.00012876,2]
[339369633,1727495434334,-500.0,0.00012876,2]
[339369634,1727495434344,-500.0,0.00012876,2]
[339369635,1727495434354,-579.87,0.00012876,2]
[339369636,1727495434364,-500.0,0.00012876,2]
[339369637,1727495434374,-500.0,0.00012876,2]
[339369638,1727495434383,-579.87,0.00012876,2]
[339369639,1727495434394,-500.0,0.00012876,2]
[339369640,1727495434404,-500.0,0.00012876,2]
[339369641,1727495434415,-503.4219919,0.00012876,2]
[339369642,1727495434425,-500.0,0.00012876,2]
[339369643,1727495434434,-223.23953365,0.00012876,2]
[339369644,1727495434444,-616.79,0.00012876,2]
[339369645,1727495434455,-616.79,0.00012876,2]
[339369646,1727495434465,-616.79,0.00012876,2]
[339369647,1727495434474,-616.79,0.00012876,2]
[339369648,1727495434484,-616.79,0.00012876,2]
[339369649,1727495434494,-616.79,0.00012876,2]
[339369650,1727495434504,-500.0,0.00012876,2]
[339369651,1727495434515,-616.79,0.00012876,2]
[339369652,1727495434525,-500.0,0.00012876,2]
[339369653,1727495434535,-616.79,0.00012876,2]
[339369654,1727495434545,-500.0,0.00012876,2]
[339369655,1727495434558,-500.0,0.00012876,2]
[339369656,1727495434568,-616.79,0.00012876,2]
[339369657,1727495434578,-500.0,0.00012876,2]
[339369658,1727495434589,-500.0,0.00012876,2]
[339369659,1727495434599,-616.79,0.00012876,2]
[339369660,1727495434608,-500.0,0.00012876,2]
[339369661,1727495434618,-500.0,0.00012876,2]
[339369662,1727495434629,-502.94096725,0.00012876,2]
[339369663,1727495434638,-616.79,0.00012876,2]
[339369664,1727495434648,-500.0,0.00012876,2]
[339369665,1727495434661,-616.79,0.00012876,2]
[339369666,1727495434671,-500.0,0.00012876,2]
[339369667,1727495434681,-502.36322835,0.00012876,2]
[339369668,1727495434691,-616.79,0.00012876,2]
[339369669,1727495434701,-616.79,0.00012876,2]
[339369670,1727495434710,-616.79,0.00012876,2]
[339369671,1727495434720,-500.0,0.00012876,2]
[339369672,1727495434730,-500.0,0.00012876,2]
[339369673,1727495434740,-500.0,0.00012876,2]
[339369674,1727495434749,-500.0,0.00012876,2]
[339369675,1727495434759,-500.0,0.00012876,2]
[339369676,1727495434769,-500.0,0.00012876,2]
[339369677,1727495434779,-500.0,0.00012876,2]
[339369678,1727495434788,-500.0,0.00012876,2]
[339369679,1727495434799,-500.0,0.00012876,2]
[339369680,1727495434808,-500.0,0.00012876,2]
[339369681,1727495434818,-500.0,0.00012876,2]
[339369682,1727495434827,-500.0,0.00012876,2]
[339369683,1727495434836,-500.0,0.00012876,2]
[339369684,1727495434846,-500.0,0.00012876,2]
[339369685,1727495434856,-500.0,0.00012876,2]
[339369686,1727495434866,-500.0,0.00012876,2]
[339369687,1727495434876,-500.0,0.00012876,2]
[339369688,1727495434888,-500.0,0.00012876,2]
[339369689,1727495434898,-500.0,0.00012876,2]
[339369690,1727495434908,-500.0,0.00012876,2]
[339369691,1727495434944,-580.43670527,0.00012876,2]
[339369692,1727495434954,-500.0,0.00012876,2]
[339369693,1727495434964,-500.0,0.00012876,2]
[339369694,1727495434974,-500.0,0.00012876,2]
[339369695,1727495434983,-500.0,0.00012876,2]
[339369696,1727495434993,-503.38074015,0.00012876,2]
[339369697,1727495435003,-500.0,0.00012876,2]
[339369698,1727495435014,-500.0,0.00012876,2]
[339369699,1727495435024,-500.0,0.00012876,2]
[339369700,1727495435034,-502.12128606,0.00012876,2]
[339369701,1727495435043,-500.0,0.00012876,2]
[339369702,1727495435053,-500.0,0.00012876,2]
[339369703,1727495435063,-500.0,0.00012876,2]
[339369704,1727495435072,-500.0,0.00012876,2]
[339369705,1727495435081,-500.0,0.00012876,2]
[339369706,1727495435091,-500.0,0.00012876,2]
[339369707,1727495435101,-500.0,0.00012876,2]
[339369708,1727495435111,-500.0,0.00012876,2]
[339369709,1727495435121,-501.35109903,0.00012876,2]
[339369710,1727495435131,-500.0,0.00012876,2]
[339369711,1727495435140,-500.0,0.00012876,2]
[339369712,1727495435150,-500.0,0.00012876,2]
[339369713,1727495435162,-502.43330041,0.00012876,2]
[339369714,1727495435179,-500.0,0.00012876,2]
[339369715,1727495435189,-500.0,0.00012876,2]
[339369716,1727495435200,-500.0,0.00012876,2]
[339369717,1727495435209,-500.0,0.00012876,2]
[339369718,1727495435220,-502.20370203,0.00012876,2]
[339369719,1727495435230,-500.0,0.00012876,2]
[339369720,1727495435240,-500.0,0.00012876,2]
[339369721,1727495435250,-500.0,0.00012876,2]
[339369722,1727495435259,-500.0,0.00012876,2]
[339369723,1727495435269,-500.0,0.00012876,2]
[339369724,1727495435279,-502.28488027,0.00012876,2]
[339369725,1727495435288,-500.0,0.00012876,2]
[339369726,1727495435298,-500.0,0.00012876,2]
[339369727,1727495435307,-502.29265686,0.00012876,2]
[339369728,1727495435318,-500.0,0.00012876,2]
[339369729,1727495435327,-500.0,0.00012876,2]
[339369730,1727495435337,-500.0,0.00012876,2]
[339369731,1727495435346,-500.0,0.00012876,2]
[339369732,1727495435356,-500.0,0.00012876,2]
[339369733,1727495435366,-500.0,0.00012876,2]
[339369734,1727495435375,-500.0,0.00012876,2]
[339369735,1727495435385,-500.0,0.00012876,2]
[339369736,1727495435395,-500.0,0.00012876,2]
[339369737,1727495435405,-500.0,0.00012876,2]
[339369738,1727495435418,-500.0,0.00012876,2]
[339369739,1727495435428,-501.68029599,0.00012876,2]
[339369740,1727495435438,-504.35163428,0.00012876,2]
[339369741,1727495435449,-500.0,0.00012876,2]
[339369742,1727495435459,-500.0,0.00012876,2]
[339369743,1727495435469,-238.22782988,0.00012876,2]